Cogmind - Beta 10.2 @@@ ROGUE MODE // 2020.11.25 @ 10:42:24 // Halloween2020/ForbiddenLore Player: Luigi Panache Result: Self-destructed Performance ------------- Evolutions (3) 1500 Regions Visited (8) 1600 Robots Destroyed (11) 55 Value Destroyed (365) 365 Prototype IDs (25) 500 Alien Tech Used (0) 0 Bonus (300) 300 TOTAL SCORE: 4320 Bonus ------- Aligned with FarCom 300 Cogmind --------- Core Integrity 677/700 Matter 247/300 Energy 100/100 System Corruption 0% Temperature Cool (0) Movement Flying (45) Location -7/Factory Parts ------- > --- POWER (2) -------- (None) > --- PROPULSION (5) --- Titanium Leg Improved VTOL Module > --- UTILITY (4) ------ Seismic Analyzer Modified TNC Improved Melee Analysis Suite Armor Integrity Analyzer > --- WEAPON (2) ------- Shock Rifle Heavy Mace > --- INVENTORY (4) ---- Aluminum Leg Wheel Hardlight Generator Peak State ------------ > --- POWER ------------ Light Ion Engine Light Nuclear Core > --- PROPULSION ------- Aluminum Leg Aluminum Leg Aluminum Leg Carbon-fiber Leg Improved VTOL Module > --- UTILITY ---------- Seismic Analyzer Modified TNC > --- WEAPON ----------- Enhanced Autogun Heavy Mace > --- INVENTORY -------- Aluminum Leg Wheel Shock Rifle [Rating: 28] Favorites ----------- Power Ion Engine Engine Ion Engine Power Core Light Nuclear Core Propulsion Flight Unit Treads Light Treads Leg Aluminum Leg Wheel Compact Wheel Flight Unit Flight Unit Utility Seismic Analyzer Device Terrain Scanner Storage Small Matter Pod Processor Seismic Analyzer Weapon Improved Light Cannon Energy Gun Medium Laser Ballistic Gun Enhanced Autogun Ballistic Cannon Improved Light Cannon Special Weapon Mining Laser Impact Weapon Heavy Mace Build | -11 -10 -10 -9 -9 -9 -8 -8 -7 ------- Run | Scr Mat Min Mat Min Exi Min Mat Fac Slots Evolved 6 | . . . 2 . . . 2 2 Power 1 | . . . . . . . 1 . Propulsion 3 | . . . 2 . . . 1 . Utility 2 | . . . . . . . . 2 Weapon . | . . . . . . . . . Parts Attached 43 | 5 2 4 3 7 . 2 16 4 Power 5 | 1 . . . . . 1 3 . Engine 3 | 1 . . . . . 1 1 . Core 2 | . . . . . . . 2 . Reactor . | . . . . . . . . . Propulsion 17 | 2 2 . 1 4 . . 7 1 Treads 2 | . 2 . . . . . . . Leg 7 | 1 . . . . . . 5 1 Wheel 3 | 1 . . 1 . . . 1 . Hover . | . . . . . . . . . Flight 5 | . . . . 4 . . 1 . Utility 7 | . . 3 . 1 . 1 . 2 Device 2 | . . 2 . . . . . . Storage 1 | . . . . 1 . . . . Processor 4 | . . 1 . . . 1 . 2 Hackware . | . . . . . . . . . Protection . | . . . . . . . . . Artifact . | . . . . . . . . . Weapon 14 | 2 . 1 2 2 . . 6 1 Energy Gun 7 | 2 . 1 2 . . . 1 1 Energy Cannon . | . . . . . . . . . Ballistic Gun 1 | . . . . . . . 1 . Ballistic Cannon 4 | . . . . 1 . . 3 . Launcher . | . . . . . . . . . Special Weapon 1 | . . . . 1 . . . . Impact Weapon 1 | . . . . . . . 1 . Slashing Weapon . | . . . . . . . . . Piercing Weapon . | . . . . . . . . . Special Melee Weapon . | . . . . . . . . . Unidentified Prototypes 2 | . . . . . . . 2 . Parts Lost 24 | . . 1 8 . . 5 10 . Power 3 | . . . 1 . . . 2 . Propulsion 12 | . . . 3 . . 3 6 . Utility 1 | . . . 1 . . . . . Weapon 8 | . . 1 3 . . 2 2 . Highest Loss Streak 6 | . . 1 4 . . 5 6 . Average Slot Usage (%) 73 | . 71 88 53 71 88 88 76 49 Engine 4 | . 14 14 4 . . 4 4 . Core 1 | . . . . . . . 5 . Treads 5 | . 10 28 17 . . . . . Leg 6 | . 7 . . . . . 22 4 Wheel 1 | . 9 . 4 . . . 1 . Flight 17 | . . . . 33 44 42 10 7 Device 2 | . . 12 5 . . . . . Storage 4 | . . . . 10 11 3 . . Processor 12 | . . 5 11 11 11 18 18 26 Energy Gun 6 | . 28 27 9 . . . . 2 Ballistic Cannon 6 | . . . . 11 11 11 8 . Special Weapon 2 | . . . . 5 11 7 . . Impact Weapon 1 | . . . . . . . 6 7 Naked Turns . | . . . . . . . . . Heaviest Build 16 | 9 9 12 12 6 6 10 16 6 Greatest Support 45 | 16 40 40 40 16 8 12 45 17 Greatest Overweight (x) 2 | . . . . 1 . . 2 . Average Overweight (x) . | . . . . . . . . . Largest Inventory Capacity 4 | 4 4 4 4 4 4 4 4 4 Average Capacity 4 | 4 4 4 4 4 4 4 4 4 Most Carried 4 | 3 3 4 4 2 3 3 4 4 Average Carried 2 | 1 3 3 3 2 2 2 3 3 Final Capacity 4 | 4 4 4 4 4 4 4 4 4 Final Carried 4 | 3 3 4 2 2 3 2 4 3 Class Distribution -------------------- 58% | Mutant 41% | Scavenger-Mutant Dominant Class ---------------- Mutant | -10/Materials Mutant | -10/Mines Mutant | -9/Materials Scavenger-Mutant | -9/Mines Scavenger-Mutant | -9/Exiles Scavenger-Mutant | -8/Mines Mutant | -8/Materials Mutant | -7/Factory Resources | -11 -10 -10 -9 -9 -9 -8 -8 -7 ----------- Run | Scr Mat Min Mat Min Exi Min Mat Fac Matter Collected 593 | 227 . 77 . 55 . 30 178 26 Remotely . | . . . . . . . . . Salvage Created 334 | . . 87 33 26 . . 162 26 Parts 14 | . . 3 . 5 . . 6 . Haulers Intercepted . | . . . . . . . . . Recyclers Shooed . | . . . . . . . . . Parts Field Recycled . | . . . . . . . . . Retrieved Matter . | . . . . . . . . . Parts Self-Destructed . | . . . . . . . . . Prevented . | . . . . . . . . . Kills | -11 -10 -10 -9 -9 -9 -8 -8 -7 ------- Run | Scr Mat Min Mat Min Exi Min Mat Fac Combat Hostiles Destroyed 10 | . . 2 1 3 . . 4 . Guns 2 | . . 2 . . . . . . Cannons 7 | . . . . 3 . . 4 . Classes Destroyed 4 | . . 1 . 1 . . 1 1 Operator 1 | . . . . . . . . 1 Swarmer 3 | . . . . 3 . . . . Grunt 6 | . . 2 1 . . . 3 . Hunter 1 | . . . . . . . 1 . Best Kill Streak 3 | . . 2 1 3 . . 2 1 Combat Bots Only 3 | . . 2 1 3 . . 2 . Max Kills in Single Turn 1 | . . 1 1 1 . . 1 1 Gunslinging . | . . . . . . . . . Exploded . | . . . . . . . . . Melee . | . . . . . . . . . Uniques/NPCs Destroyed . | . . . . . . . . . Combat | -11 -10 -10 -9 -9 -9 -8 -8 -7 -------- Run | Scr Mat Min Mat Min Exi Min Mat Fac Damage Taken 2260 | . . 351 481 130 . 191 1001 106 Core 578 | . . 68 138 64 . 38 247 23 Absorbed by Shields . | . . . . . . . . . Core Remaining (%) 66 | 100 . 72 . . . 40 55 . Volleys Fired 51 | 1 . 8 12 9 . . 19 2 Largest 2 | 2 . 2 2 1 . . 2 1 Hottest 121 | 100 . 115 121 100 . . 94 50 Shots Fired 62 | 2 . 16 13 9 . . 20 2 Gun 34 | 2 . 16 13 . . . 1 2 Cannon 27 | . . . . 8 . . 19 . Launcher . | . . . . . . . . . Special 1 | . . . . 1 . . . . Kinetic 27 | . . . . 8 . . 19 . Thermal 32 | 2 . 16 13 1 . . . . Explosive . | . . . . . . . . . Electromagnetic 3 | . . . . . . . 1 2 Robot Hit Streak 12 | 1 . 6 12 2 . . 7 1 Robot Miss Streak 4 | 1 . 4 2 3 . . 4 1 Penetration Max . | . . . . . . . . . Secondary Targets . | . . . . . . . . . Shots Hit Robots 41 | 1 . 11 9 3 . . 14 3 Core Hits 18 | . . 5 2 3 . . 8 . Critical Hits . | . . . . . . . . . Critical Kills . | . . . . . . . . . Critical Parts Destroyed . | . . . . . . . . . Melee Attacks 4 | . . . . . . . 2 2 Impact 4 | . . . . . . . 2 2 Slashing . | . . . . . . . . . Piercing . | . . . . . . . . . Sneak Attacks 1 | . . . . . . . . 1 Combat Hostiles . | . . . . . . . . . Follow-up Attacks . | . . . . . . . . . Damage Inflicted 805 | 13 . 125 136 89 . . 350 92 Guns 306 | 13 . 125 136 . . . 18 14 Cannons 421 | . . . . 89 . . 332 . Explosions . | . . . . . . . . . Melee 78 | . . . . . . . . 78 Ramming . | . . . . . . . . . Kinetic 421 | . . . . 89 . . 332 . Thermal 274 | 13 . 125 136 . . . . . Explosive . | . . . . . . . . . Electromagnetic 32 | . . . . . . . 18 14 Impact 78 | . . . . . . . . 78 Slashing . | . . . . . . . . . Piercing . | . . . . . . . . . Highest Corruption . | . . . . . . . . . Average Corruption . | . . . . . . . . . Corruption Purged . | . . . . . . . . . Overload Shots . | . . . . . . . . . Overflow Damage 54 | . . . . . . . 5 49 Projectiles 5 | . . . . . . . 5 . Explosions . | . . . . . . . . . Melee 49 | . . . . . . . . 49 Knockbacks 3 | . . . . 1 . . 1 1 Impact 1 | . . . . . . . . 1 Kinetic 2 | . . . . 1 . . 1 . Secondary . | . . . . . . . . . Self-Inflicted Damage . | . . . . . . . . . Shots . | . . . . . . . . . Rammed . | . . . . . . . . . Targets Rammed . | . . . . . . . . . Kicked . | . . . . . . . . . Crushed . | . . . . . . . . . Highest Temperature 393 | 39 . 393 120 . . . 120 9 Average Temperature 120 | 24 . 218 47 . . . 65 9 Received Heat Transfer 723 | . . 138 270 . . . 279 36 Effects 1 | . . 1 . . . . . . Shutdowns 1 | . . 1 . . . . . . Siege Activations . | . . . . . . . . . Robots Corrupted . | . . . . . . . . . Combat Hostiles . | . . . . . . . . . Parts Fried 1 | . . . . . . . . 1 Impact Corruptions 2 | . . . . . . . . 2 Robots Melted 1 | . . . 1 . . . . . Combat Hostiles 1 | . . . 1 . . . . . Parts Melted 1 | . . 1 . . . . . . Heat Transferred 777 | 37 . 370 370 . . . . . Parts Sabotaged . | . . . . . . . . . Parts Stolen . | . . . . . . . . . Parts Stripped . | . . . . . . . . . Power Chain Reactions . | . . . . . . . . . Missiles Intercepted . | . . . . . . . . . Alert | -11 -10 -10 -9 -9 -9 -8 -8 -7 ------- Run | Scr Mat Min Mat Min Exi Min Mat Fac Peak Influence 115 | . 26 59 27 70 . . 115 71 Initial 51 | . . 9 18 . . . . 51 Average 46 | . 15 52 12 54 . . 73 57 Maximum Alert Level . | . . . . . . . . . Low Security (%) 100 | 100 100 100 100 100 . 100 100 100 Level 1 . | . . . . . . . . . Level 2 . | . . . . . . . . . Level 3 . | . . . . . . . . . Level 4 . | . . . . . . . . . Level 5 . | . . . . . . . . . High Security . | . . . . . . . . . Max Security . | . . . . . . . . . Squads Dispatched 7 | . 1 . 1 . . . 4 1 Investigation 1 | . . . . . . . 1 . Extermination . | . . . . . . . . . Reinforcement 6 | . 1 . 1 . . . 3 1 Assault . | . . . . . . . . . Garrison . | . . . . . . . . . Intercept . | . . . . . . . . . Construction Impeded . | . . . . . . . . . Haulers Reinforced . | . . . . . . . . . Stealth | -11 -10 -10 -9 -9 -9 -8 -8 -7 --------- Run | Scr Mat Min Mat Min Exi Min Mat Fac Distress Signals . | . . . . . . . . . Communications Jammed . | . . . . . . . . . Distress Signals . | . . . . . . . . . Times Spotted 45 | . 3 8 3 3 . 7 19 2 Peak Tracking Total 12 | . 3 3 3 3 . 7 12 1 Tactical Retreats . | . . . . . . . . . Traps | -11 -10 -10 -9 -9 -9 -8 -8 -7 ------- Run | Scr Mat Min Mat Min Exi Min Mat Fac Traps Triggered 3 | . . . . . . . 3 . Indirectly . | . . . . . . . . . Trap Hack Attempts . | . . . . . . . . . Triggered . | . . . . . . . . . Disarmed . | . . . . . . . . . Reprogrammed . | . . . . . . . . . Reused . | . . . . . . . . . Traps Extracted . | . . . . . . . . . Installed . | . . . . . . . . . Triggered . | . . . . . . . . . Machines | -11 -10 -10 -9 -9 -9 -8 -8 -7 ---------- Run | Scr Mat Min Mat Min Exi Min Mat Fac Machines Disabled . | . . . . . . . . . Max in Single Turn . | . . . . . . . . . Machines Sabotaged . | . . . . . . . . . Garrisons Compromised . | . . . . . . . . . Overloaded Fab Kills . | . . . . . . . . . Fab Network Shutdowns . | . . . . . . . . . Hacking | -11 -10 -10 -9 -9 -9 -8 -8 -7 --------- Run | Scr Mat Min Mat Min Exi Min Mat Fac Machines Accessed 9 | . 2 . 2 . 1 . 2 2 Terminals 7 | . 2 . 2 . . . 2 1 Fabricators . | . . . . . . . . . Repair Stations . | . . . . . . . . . Recycling Units 1 | . . . . . . . . 1 Scanalyzers . | . . . . . . . . . Garrison Access . | . . . . . . . . . Total Hacks 19 | . 3 . 4 . 1 . 8 3 Successful 12 | . 3 . 3 . 1 . 4 1 Failed 7 | . . . 1 . . . 4 2 Catastrophic 2 | . . . . . . . 1 1 Database Lockouts . | . . . . . . . . . Manual 8 | . 2 . 1 . 1 . 4 . Terminals 17 | . 3 . 4 . . . 8 2 Fabricators . | . . . . . . . . . Repair Stations . | . . . . . . . . . Recycling Units 1 | . . . . . . . . 1 Scanalyzers . | . . . . . . . . . Garrison Access . | . . . . . . . . . Terminal Hacks 11 | . 3 . 3 . 1 . 4 . Level Access Points 3 | . 1 . 1 . . . 1 . Branch Access Points 1 | . 1 . . . . . . . Maintenance Status 2 | . 1 . 1 . . . . . Transport Status 1 | . . . . . . . 1 . Hauler Manifests 1 | . . . . . . . 1 . Zone Layout 2 | . . . 1 . . . 1 . EX-Prototype ID Bank 1 | . . . . . 1 . . . Fabricator Hacks . | . . . . . . . . . Repair Station Hacks . | . . . . . . . . . Recycling Unit Hacks 1 | . . . . . . . . 1 Report Inventory 1 | . . . . . . . . 1 Scanalyzer . | . . . . . . . . . Garrison Access Hacks . | . . . . . . . . . Unauthorized Hacks . | . . . . . . . . . Terminals . | . . . . . . . . . Fabricators . | . . . . . . . . . Repair Stations . | . . . . . . . . . Recycling Units . | . . . . . . . . . Scanalyzers . | . . . . . . . . . Garrison Access . | . . . . . . . . . Data Cores Recovered . | . . . . . . . . . Used . | . . . . . . . . . Hacking Detections 5 | . . . 2 . . . 2 1 Full Trace Events . | . . . . . . . . . Feedback Events . | . . . . . . . . . Feedback Blocked . | . . . . . . . . . Robot Schematics Acquired . | . . . . . . . . . Robots Built . | . . . . . . . . . Matter . | . . . . . . . . . Time . | . . . . . . . . . Total Robot Build Rating . | . . . . . . . . . Part Schematics Acquired . | . . . . . . . . . Parts Built . | . . . . . . . . . Matter . | . . . . . . . . . Time . | . . . . . . . . . Total Part Build Rating . | . . . . . . . . . Parts Repaired . | . . . . . . . . . Time . | . . . . . . . . . Parts Recycled . | . . . . . . . . . Recycled Matter . | . . . . . . . . . Retrieved Matter . | . . . . . . . . . Retrieved Components . | . . . . . . . . . Parts Scanalyzed . | . . . . . . . . . Part Schematics Acquired . | . . . . . . . . . Parts Damaged . | . . . . . . . . . Bothacking | -11 -10 -10 -9 -9 -9 -8 -8 -7 ------------ Run | Scr Mat Min Mat Min Exi Min Mat Fac Used RIF Installer . | . . . . . . . . . Robots Hacked . | . . . . . . . . . Non-combat . | . . . . . . . . . Combat . | . . . . . . . . . Robot Hacks Applied . | . . . . . . . . . Relay Couplers Released . | . . . . . . . . . Robots Rewired . | . . . . . . . . . Allies Hacked . | . . . . . . . . . Hacks Repelled . | . . . . . . . . . Allies | -11 -10 -10 -9 -9 -9 -8 -8 -7 -------- Run | Scr Mat Min Mat Min Exi Min Mat Fac Total Allies 1 | . . . . 1 . . . . Largest Group 1 | . . . . 1 1 . . . Highest-Rated Group 31 | . . . . 31 31 . . . Highest-Rated Ally 31 | . . . . 31 31 . . . Total Orders . | . . . . . . . . . Ally Attacks . | . . . . . . . . . Total Damage . | . . . . . . . . . Kills . | . . . . . . . . . Allies Corrupted . | . . . . . . . . . Allies Melted . | . . . . . . . . . Intel | -11 -10 -10 -9 -9 -9 -8 -8 -7 ------- Run | Scr Mat Min Mat Min Exi Min Mat Fac Robot Analysis Total . | . . . . . . . . . Derelict Logs Recovered 1 | . . . . 1 . . . . Drone Launches . | . . . . . . . . . Drone Recoveries . | . . . . . . . . . Exploration | -11 -10 -10 -9 -9 -9 -8 -8 -7 ------------- Run | Scr Mat Min Mat Min Exi Min Mat Fac Turns Passed 1575 | 64 85 171 181 387 153 72 363 99 Spaces Moved 1335 | 52 72 83 121 273 207 105 301 121 Core 47 | 3 . . 6 34 . . 4 . Treads 152 | . 19 83 50 . . . . . Legs 186 | 2 . . . . . . 164 20 Wheels 176 | 47 53 . 65 . . . 11 . Hover . | . . . . . . . . . Flight 774 | . . . . 239 207 105 122 101 Fastest Speed 31 | 50 100 160 50 31 37 34 34 35 Average Speed 72 | 97 115 160 122 42 37 34 83 54 Slowest Speed 160 | 120 160 160 160 120 37 40 150 130 Overloaded Moves . | . . . . . . . . . Propulsion Burnouts . | . . . . . . . . . Robots Hopped 6 | . . . . 3 . 3 . . Cave-ins Triggered . | . . . . . . . . . Exploration Rate (%) 28 | 3 21 30 18 51 59 38 32 2 Regions Visited 8 Branch Regions 4 Pre-discovered Areas 1 | . . 1 . . . . . . Known Exits Taken 4 | . 1 1 . . . 1 1 . Unknown Exits Taken 4 | 1 . . 1 1 1 . . . Scrap Searched 2 | . . 1 . 1 . . . . Spaces Dug 2 | . . . . 1 . . 1 . Terrain Destroyed 7 | . . . . 1 . . 6 . Melee 1 | . . . . . . . 1 . Projectile 6 | . . . . 1 . . 5 . AOE . | . . . . . . . . . Terrain Rammed . | . . . . . . . . . Walls Destroyed . | . . . . . . . . . Machines Disabled . | . . . . . . . . . Actions | -11 -10 -10 -9 -9 -9 -8 -8 -7 --------- Run | Scr Mat Min Mat Min Exi Min Mat Fac Total 1847 | 60 73 104 139 525 282 137 381 146 Wait 411 | . . 9 4 240 75 32 34 17 Move 1315 | 51 71 82 120 266 206 98 300 121 Hop 6 | . . . . 3 . 3 . . Pick Up 9 | 3 . . . . 1 . 5 . Fast Attach 35 | 5 . 3 1 7 . 1 15 3 Attach 5 | . . . 2 . . 1 1 1 Detach . | . . . . . . . . . Swap 3 | . 2 1 . . . . . . Drop 8 | . . 1 . . . 2 5 . Fire 51 | 1 . 8 12 9 . . 19 2 Melee 4 | . . . . . . . 2 2 Ram . | . . . . . . . . . Kick . | . . . . . . . . . Crush . | . . . . . . . . . Escape Stasis . | . . . . . . . . . Rewire . | . . . . . . . . . Trap . | . . . . . . . . . Miscellaneous . | . . . . . . . . . Route ------- -11/Scrapyard -10/Materials (discovered 4 exits: Mat x3 / *Min) -10/Mines -9/Materials (discovered 4 exits: Mat x3 / [*Min]) -9/Mines (discovered 3 exits: *Mat x2 / *Exi) -9/Exiles -8/Mines -8/Materials (discovered 3 exits: *Fac x3) -7/Factory History --------- Turn | Location | Event 17 | -11/Scrapyard | Discovered new exit (range 15) 65 | -11/Scrapyard | Entered Materials 88 | -10/Materials | Identified exit to Materials 104 | -10/Materials | Identified exit to Mines 150 | -10/Materials | Entered Mines 289 | -10/Mines | Assembled infested the area 294 | -10/Mines | Assisted by a Guerilla fighting off Assembled 300 | -10/Mines | Discovered exit to Materials (range 14) 312 | -10/Mines | Build established: Mutant 321 | -10/Mines | Learned location of Storage (-7) 321 | -10/Mines | Entered Materials 321 | -9/Materials | Evolved 2 slots: Propulsion x2 339 | -9/Materials | Identified exit to Materials 445 | -9/Materials | Lost 4 parts (1p1u2w) 486 | -9/Materials | Discovered new exit (range 13) 502 | -9/Materials | Entered Mines 529 | -9/Mines | Lost 4 parts (3n1w) 574 | -9/Mines | Discovered exit to Materials (range 9) 590 | -9/Mines | Core integrity fell below 50% 679 | -9/Mines | Received a Mining Laser from a helpful Derelict 820 | -9/Mines | Received a Rocket Launcher from a helpful Derelict 838 | -9/Mines | Deemed a non-threat by the Exiles lab entrance 838 | -9/Mines | Discovered new exit (range 5) 889 | -9/Mines | Entered Exiles 889 | -9/Exiles | Accompanied by 1 ally 896 | -9/Exiles | Build established: Scavenger-Mutant 899 | -9/Exiles | Met 8R-AWN 905 | -9/Exiles | Met EX-HEX 932 | -9/Exiles | Met EX-BIN 936 | -9/Exiles | Aligned with FarCom system 937 | -9/Exiles | Given EX-Vault access code 945 | -9/Exiles | Opened EX-Vault 948 | -9/Exiles | Found Modified TNC 956 | -9/Exiles | Warned to stay clear of 0b10 Research branches 962 | -9/Exiles | Exiles lab attacked by MAIN.C 1015 | -9/Exiles | Discovered new exit (range 10) 1042 | -9/Exiles | Left Exiles lab with Modified TNC 1042 | -9/Exiles | Entered Mines 1111 | -8/Mines | Discovered exit to Materials (range 7) 1114 | -8/Mines | Entered Materials 1114 | -8/Materials | Evolved 2 slots: Power x1, Propulsion x1 1144 | -8/Materials | Lost 5 parts (3n2w) 1469 | -8/Materials | Identified exit to Factory 1477 | -8/Materials | Entered Factory 1477 | -7/Factory | Evolved 2 slots: Utility x2 1486 | -7/Factory | Lost 6 parts (1p4n1w) 1576 | -7/Factory | Self-destructed Last Messages --------------- 01505_ O-24 Administrator: "IFF HANDSHAKE FAILED. SECURING TERMINAL." 01505_ O-24 Administrator uses terminal to summon reinforcements. 01505_ ALERT: Hostiles spotted, dispatching reinforcements to Terminal F018. 01505_ O-24 Administrator locks terminal. 01513_ Acquired Titanium Leg. 01518_ Connecting with Terminal... 01519_ Acquired Armor Integrity Analyzer. 01567_ Sneak attack on O-24 Administrator. 01567_ Destroyed System Shield. 01567_ Destroyed Imp. Hover Unit. 01567_ O-24 Administrator system corrupted by crushing effect. 01567_ O-24 Administrator knocked back. 01568_ O-24 Administrator system terminally corrupted. 01568_ Imp. Hover Unit fried. 01570_ Acquired 26 matter. 01576_ Connecting with Recycling Unit... >>Recycling(Report) Matter reserves: 0 Inventory: Empty Map ----- +----------------------------------------------------+ | | | | | | | | | | | | | | | | | | | | | | | | | | | ?????????????????????????????????????????????????? | | ?????????????????????????????????????????????????? | | ??????????????????????????????????????Y??????????? | | ?????????????????????????????????????????????????? | | ???????????????????????#########?????????????????? | | ???????????????????????# +?????????????????? | | ???????????????????????# #?????????????????? | | ????????????????????#+## ##+#??????????????? | | ????????????????????# * ???????????????? | | ????????????????????# ????????????????? | | ????????????????????# "" """" ????????????????? | | ????????????????????# "Y """" ??????????????? | | ????????????????????# ""@ """" #??????????????? | | ????????????????????# #??????????????? | | ?????????g??????????# #??????????????? | | ????????????????????#### ##########??????????????? | | ?????????????????????### ###?????????????????????? | | ????????a? g##+####### #?????????????????????? | | ????????? " #################???### | | ????????? "T Y #???# | | ????????? ############### #???# " | | ?????????????#+####### #?????????????# #???# " | | ???????????????????#####+#####???????????# #???# " | | ???????????????????# #???????????# #???# " | | ???????????????????# #??########## ##### " | | ???????????????????# #??# # | | ???????????????????# """"""" #??# # | | ???????????????????# """"""" #??# + | | ???????????????????# """"""" #??# # " | | ???????????????????# """"""" #??# # " | | ???????????????????#??? #??####+######### # " | | ????????????????????????????????# #???# # | | ????????????????????????????????# """" #???# + " | | ????????????????????????????????# ! """" #???### " | | ????????????????????????????????# """" #?????# " | | ????????????????????????????????# """" #?????# | | ????????????????????????????????# """" #?????### | +----------------------------------------------------+ Best States ------------- Heat Dissipation 39 Energy Generation 19 Energy Capacity 250 Matter Stores 309 Matter Capacity 350 Sight Range 16 Terrain Scan Range 14 Terrain Scan Density 60 Evasion (%) 63 Melee Accuracy 6 Armor Integrity Analysis 33 Recoil Reduction 2 Item Schematics ----------------- None Robot Schematics ------------------ None Fabricated ------------ Nothing Alien Tech Used ----------------- None Achievements -------------- None Challenges ------------ None Game ------ Seed LaserArmoredStick Manual? 0 Play Time 00:47:07 Cumulative 125.0 hours Start 2020.11.25 @ 03:58:38 End 2020.11.25 @ 10:42:24 Sessions 9 Manual Loads 0 Difficulty Rogue Special Mode Halloween2020/ForbiddenLore Game No. 85 Rogue 27 Adventurer 21 Explorer 37 Win Type - Total 6 Types 6/0/0/0/0/0/0/0/0 Lore% 47 Gallery% 70 Achievement% 57 Wizard Run 0 Options --------- ASCII 0 Keyboard 0 Movement Mouse Keybinds 0 Fullscreen 2 Font 18/Terminus Map View 76x50 Tactical HUD 1 Map Filters NONE Filters NONE Steam 1 RUN: 9e28659b-4dfc-43f0-a8ec-2f867eadfce8